Cogmind - Beta 12 @@@ ROGUE MODE // 2023.05.07 @ 11:51:43 Player: Andz Result: Destroyed by G-47 Trooper with Particle Gun Performance ------------- Evolutions (2) 1000 Regions Visited (4) 800 Robots Destroyed (40) 200 Value Destroyed (1012) 1012 Prototype IDs (5) 100 Alien Tech Used (0) 0 Bonus (0) 0 TOTAL SCORE: 3112 Bonus ------- None Cogmind --------- Core Integrity 0/550 Matter 241/300 Energy 100/100 System Corruption 0% Temperature Danger (429) Movement Core (700) Ox13 Location -8/Materials Parts ------- > --- POWER (1) -------- (None) > --- PROPULSION (4) --- (None) > --- UTILITY (4) ------ Cryofiber Web High-capacity Storage Unit > --- WEAPON (2) ------- (None) > --- INVENTORY (20) --- Light Nuclear Core Heat Sink Improved Heat Sink Large Battery (200) Advanced Visual Processing Unit Sensor Array Experimental Sensor Array Signal Interpreter Hacking Suite Minigun Peak State ------------ > --- POWER ------------ Deuterium Engine > --- PROPULSION ------- Aluminum Leg Carbon-fiber Leg Carbon-fiber Leg VSS Leg > --- UTILITY ---------- High-capacity Storage Unit Weight Redist. System Improved Terrain Scanner Reactive Plating > --- WEAPON ----------- Field Laser Minigun > --- INVENTORY -------- Deuterium Engine Deuterium Engine Light Nuclear Core Light Treads Light Treads Light Treads Aluminum Leg Cryofiber Web Heat Sink Improved Heat Sink Large Battery Advanced Visual Processing Unit Sensor Array Experimental Sensor Array Signal Interpreter Field Laser Field Laser Minigun Minigun Minigun [Rating: 33] Favorites ----------- Power Deuterium Engine Engine Deuterium Engine Propulsion Aluminum Leg Treads Light Treads Leg Aluminum Leg Utility High-capacity Storage Unit Device Improved Terrain Scanner Storage High-capacity Storage Unit Processor Targeting Computer Protection Reactive Plating Weapon Minigun Energy Gun Field Laser Ballistic Gun Minigun Build | -11 -10 -10 -9 -8 ------- Run | Jun Mat Min Mat Mat Slots Evolved 4 | . . . 2 2 Power . | . . . . . Propulsion 2 | . . . 2 . Utility 2 | . . . . 2 Weapon . | . . . . . Parts Attached 45 | 8 4 2 10 21 Power 7 | 1 1 1 2 2 Engine 7 | 1 1 1 2 2 Core . | . . . . . Reactor . | . . . . . Propulsion 16 | 2 1 . 5 8 Treads 1 | . . . . 1 Leg 15 | 2 1 . 5 7 Wheel . | . . . . . Hover . | . . . . . Flight . | . . . . . Utility 12 | 3 1 . 1 7 Device 6 | 2 . . 1 3 Storage 3 | 1 1 . . 1 Processor 1 | . . . . 1 Hackware . | . . . . . Protection 2 | . . . . 2 Artifact . | . . . . . Weapon 10 | 2 1 1 2 4 Energy Gun 5 | 1 1 . 1 2 Energy Cannon . | . . . . . Ballistic Gun 5 | 1 . 1 1 2 Ballistic Cannon . | . . . . . Launcher . | . . . . . Special Weapon . | . . . . . Impact Weapon . | . . . . . Slashing Weapon . | . . . . . Piercing Weapon . | . . . . . Special Melee Weapon . | . . . . . Unidentified Prototypes . | . . . . . Parts Lost 26 | . 2 1 2 21 Power 5 | . . 1 1 3 Propulsion 9 | . 1 . . 8 Utility 5 | . . . 1 4 Weapon 7 | . 1 . . 6 Highest Loss Streak 19 | . 2 1 1 19 To Critical Strikes . | . . . . . Average Slot Usage (%) 99 | . 99 100 99 98 Engine 11 | . 14 14 10 9 Leg 33 | . 27 28 43 34 Device 15 | . 14 14 11 17 Storage 11 | . 14 14 11 9 Processor 2 | . . . . 5 Protection 1 | . . . . 3 Energy Gun 11 | . 14 14 11 8 Ballistic Gun 11 | . 14 14 11 8 Naked Turns . | . . . . . Heaviest Build 66 | 14 50 50 56 66 Greatest Support 58 | 20 20 20 40 58 Greatest Overweight (x) 3 | . 2 2 2 3 Average Overweight (x) 1 | . 1 2 1 . Largest Inventory Capacity 20 | 8 20 20 20 20 Average Capacity 19 | 7 19 20 20 20 Most Carried 20 | 5 18 20 20 20 Average Carried 16 | 3 11 19 19 18 Final Capacity 20 | 8 20 20 20 20 Final Carried 20 | 4 18 20 20 10 Class Distribution -------------------- 60% | Mutant 39% | Scavenger-Mutant Dominant Class ---------------- Mutant | -10/Materials Scavenger-Mutant | -10/Mines Scavenger-Mutant | -9/Materials Mutant | -8/Materials Resources | -11 -10 -10 -9 -8 ----------- Run | Jun Mat Min Mat Mat Matter Collected 963 | 289 70 92 199 313 Remotely . | . . . . . Salvage Created 1447 | 106 303 28 311 699 Parts 86 | 3 18 5 17 43 Haulers Intercepted 1 | . . . . 1 Recyclers Shooed 1 | . . . . 1 Parts Field Recycled . | . . . . . Retrieved Matter . | . . . . . Parts Self-Destructed . | . . . . . Prevented . | . . . . . Kills | -11 -10 -10 -9 -8 ------- Run | Jun Mat Min Mat Mat Combat Hostiles Destroyed 29 | . 9 2 7 11 Guns 29 | . 9 2 7 11 Classes Destroyed 11 | 2 3 . 2 4 Worker 3 | . . . 1 2 Builder 1 | . 1 . . . Tunneler 2 | 1 . . 1 . Hauler 1 | . . . . 1 Recycler 3 | 1 . . . 2 Watcher 1 | . . . . 1 Swarmer 10 | . 3 2 2 3 Grunt 12 | . 6 . 3 3 Sentry 3 | . . . 2 1 Specialist 2 | . . . . 2 Hunter 2 | . . . . 2 Best Kill Streak 4 | 1 4 2 4 4 Combat Bots Only 4 | . 4 2 3 4 Max Kills in Single Turn 2 | 1 1 2 2 1 Gunslinging 1 | . . 1 . . Exploded . | . . . . . Melee . | . . . . . Uniques/NPCs Destroyed . | . . . . . Combat | -11 -10 -10 -9 -8 -------- Run | Jun Mat Min Mat Mat Damage Taken 3644 | . 463 91 393 2697 Core 698 | . 51 47 44 556 Absorbed by Shields . | . . . . . Core Remaining (%) 83 | 100 . 60 89 . Volleys Fired 145 | 9 40 6 25 65 Largest 2 | 2 2 2 2 2 Hottest 88 | 70 85 85 88 88 Shots Fired 287 | 18 80 12 50 127 Gun 287 | 18 80 12 50 127 Cannon . | . . . . . Launcher . | . . . . . Special . | . . . . . Kinetic 142 | 9 40 6 25 62 Thermal 145 | 9 40 6 25 65 Explosive . | . . . . . Electromagnetic . | . . . . . Robot Hit Streak 12 | 6 10 3 7 12 Robot Miss Streak 9 | 2 9 3 5 4 Penetration Max . | . . . . . Secondary Targets 3 | . . 1 . 2 Max Gunslinging Chain 1 | . . 1 . 1 Shots Hit Robots 180 | 12 43 7 34 84 Core Hits 69 | 4 21 2 12 30 Critical Kills . | . . . . . Critical Parts Destroyed . | . . . . . Critical Strikes 10 | . 4 . 1 5 Burn 10 | . 4 . 1 5 Melee Attacks . | . . . . . Impact . | . . . . . Slashing . | . . . . . Piercing . | . . . . . Sneak Attacks . | . . . . . Combat Hostiles . | . . . . . Follow-up Attacks . | . . . . . Damage Inflicted 2735 | 124 442 70 633 1466 Guns 2731 | 124 442 70 633 1462 Cannons . | . . . . . Explosions . | . . . . . Melee . | . . . . . Ramming 4 | . . . . 4 Kinetic 1281 | 49 183 40 345 664 Thermal 1450 | 75 259 30 288 798 Explosive . | . . . . . Electromagnetic . | . . . . . Impact . | . . . . . Slashing . | . . . . . Piercing . | . . . . . Highest Corruption . | . . . . . Average Corruption . | . . . . . Corruption Purged . | . . . . . Corruption Blocked . | . . . . . Overload Shots . | . . . . . Overflow Damage . | . . . . . Projectiles . | . . . . . Explosions . | . . . . . Melee . | . . . . . Knockbacks . | . . . . . Impact . | . . . . . Kinetic . | . . . . . Secondary . | . . . . . Self-Inflicted Damage . | . . . . . Shots . | . . . . . Rammed . | . . . . . Targets Rammed 3 | . . . . 3 Kicked 3 | . . . . 3 Crushed . | . . . . . Highest Temperature 693 | 100 191 159 98 693 Average Temperature 106 | 45 66 83 47 154 Received Heat Transfer 969 | . 195 . 153 621 Effects 17 | . . . . 17 Shutdowns 1 | . . . . 1 Energy Bleed 2 | . . . . 2 Interference 4 | . . . . 4 Short Circuit 1 | . . . . 1 Damage (minor) 4 | . . . . 4 Damage (major) 5 | . . . . 5 Siege Activations . | . . . . . Robots Corrupted . | . . . . . Combat Hostiles . | . . . . . Parts Fried . | . . . . . Impact Corruptions . | . . . . . Robots Melted . | . . . . . Combat Hostiles . | . . . . . Parts Melted 10 | . 4 . 4 2 Heat Transferred 4144 | 222 1036 74 703 2109 Parts Sabotaged . | . . . . . Parts Stolen . | . . . . . Parts Stripped . | . . . . . Power Chain Reactions . | . . . . . Missiles Intercepted . | . . . . . Alert | -11 -10 -10 -9 -8 ------- Run | Jun Mat Min Mat Mat Peak Influence 257 | 10 220 106 257 184 Initial 40 | . 6 36 40 24 Average 81 | 3 72 90 141 67 Maximum Alert Level 1 | . 1 . 1 . Low Security (%) 92 | 100 88 100 70 100 Level 1 7 | . 11 . 29 . Level 2 . | . . . . . Level 3 . | . . . . . Level 4 . | . . . . . Level 5 . | . . . . . High Security . | . . . . . Max Security . | . . . . . Squads Dispatched 6 | . 1 . 1 4 Investigation 1 | . . . . 1 Extermination . | . . . . . Reinforcement 5 | . 1 . 1 3 Assault . | . . . . . Garrison . | . . . . . Intercept . | . . . . . Searches Triggered . | . . . . . Construction Impeded . | . . . . . Haulers Reinforced . | . . . . . Active Scanning Responses . | . . . . . Cargo Convoy Interrupts . | . . . . . Stealth | -11 -10 -10 -9 -8 --------- Run | Jun Mat Min Mat Mat Distress Signals 3 | . 2 . 1 . Communications Jammed . | . . . . . Distress Signals . | . . . . . Times Spotted 49 | . 16 5 10 18 Peak Tracking Total 6 | . 6 3 4 5 Tactical Retreats 3 | . . 1 1 1 Traps | -11 -10 -10 -9 -8 ------- Run | Jun Mat Min Mat Mat Traps Triggered 2 | . 1 . 1 . Indirectly . | . . . . . Trap Hack Attempts . | . . . . . Triggered . | . . . . . Disarmed . | . . . . . Reprogrammed . | . . . . . Reused . | . . . . . Traps Extracted . | . . . . . Installed . | . . . . . Triggered . | . . . . . Machines | -11 -10 -10 -9 -8 ---------- Run | Jun Mat Min Mat Mat Machines Disabled . | . . . . . Max in Single Turn . | . . . . . Machines Repaired . | . . . . . Machines Sabotaged . | . . . . . Overloaded Fab Kills . | . . . . . Hacking | -11 -10 -10 -9 -8 --------- Run | Jun Mat Min Mat Mat Machines Accessed 13 | . 3 . 2 8 Terminals 10 | . 3 . 1 6 Fabricators . | . . . . . Repair Stations . | . . . . . Recycling Units 1 | . . . 1 . Scanalyzers 2 | . . . . 2 Garrison Access . | . . . . . Total Hacks 43 | . 10 . 6 27 Successful 18 | . 5 . 1 12 Failed 25 | . 5 . 5 15 Catastrophic 1 | . 1 . . . Database Lockouts . | . . . . . Manual 1 | . 1 . . . Terminals 34 | . 10 . 3 21 Fabricators . | . . . . . Repair Stations . | . . . . . Recycling Units 3 | . . . 3 . Scanalyzers 6 | . . . . 6 Garrison Access . | . . . . . Terminal Hacks 14 | . 5 . 1 8 Record 5 | . . . . 5 Prototype ID Bank 2 | . 1 . . 1 Emergency Access Points 1 | . . . 1 . Recycling Unit Index 1 | . . . . 1 Locate Traps 1 | . . . . 1 Dispatch Records 2 | . 2 . . . Investigation Status 1 | . 1 . . . Hauler Manifests 1 | . 1 . . . Fabricator Hacks . | . . . . . Repair Station Hacks . | . . . . . Recycling Unit Hacks . | . . . . . Scanalyzer 4 | . . . . 4 Insert Component 2 | . . . . 2 Analyze 2 | . . . . 2 Garrison Access Hacks . | . . . . . Unauthorized Hacks . | . . . . . Terminals . | . . . . . Fabricators . | . . . . . Repair Stations . | . . . . . Recycling Units . | . . . . . Scanalyzers . | . . . . . Garrison Access . | . . . . . Data Cores Recovered . | . . . . . Used . | . . . . . Hacking Detections 12 | . 3 . 2 7 Full Trace Events 1 | . . . . 1 Feedback Events . | . . . . . Feedback Blocked . | . . . . . Robot Schematics Acquired . | . . . . . Robots Built . | . . . . . Authchips . | . . . . . Time . | . . . . . Total Robot Build Rating . | . . . . . Part Schematics Acquired 1 | . . . . 1 Parts Built . | . . . . . Authchips . | . . . . . Time . | . . . . . Total Part Build Rating . | . . . . . Parts Repaired . | . . . . . Time . | . . . . . Parts Recycled . | . . . . . Recycled Matter . | . . . . . Retrieved Matter . | . . . . . Retrieved Components . | . . . . . Parts Scanalyzed 1 | . . . . 1 Part Schematics Acquired 1 | . . . . 1 Parts Damaged 1 | . . . . 1 Bothacking | -11 -10 -10 -9 -8 ------------ Run | Jun Mat Min Mat Mat Used RIF Installer . | . . . . . Robots Hacked . | . . . . . Non-combat . | . . . . . Combat . | . . . . . Robot Hacks Applied . | . . . . . Relay Couplers Released . | . . . . . Fabnet Peak Effective % . | . . . . . Robots Rewired . | . . . . . Allies Hacked . | . . . . . Hacks Repelled . | . . . . . Allies | -11 -10 -10 -9 -8 -------- Run | Jun Mat Min Mat Mat Total Allies . | . . . . . Largest Group . | . . . . . Highest-Rated Group . | . . . . . Highest-Rated Ally . | . . . . . Total Orders . | . . . . . Ally Attacks . | . . . . . Total Damage . | . . . . . Kills . | . . . . . Allies Corrupted . | . . . . . Allies Melted . | . . . . . Intel | -11 -10 -10 -9 -8 ------- Run | Jun Mat Min Mat Mat Robot Analysis Total . | . . . . . Derelict Logs Recovered 1 | . . 1 . . Drone Launches . | . . . . . Drone Recoveries . | . . . . . Exploration | -11 -10 -10 -9 -8 ------------- Run | Jun Mat Min Mat Mat Turns Passed 2566 | 116 649 394 428 979 Spaces Moved 877 | 64 178 143 152 340 Core 3 | 3 . . . . Treads . | . . . . . Legs 874 | 61 178 143 152 340 Wheels . | . . . . . Hover . | . . . . . Flight . | . . . . . Fastest Speed 50 | 50 120 260 190 112 Average Speed 204 | 116 253 260 191 176 Slowest Speed 330 | 120 260 260 260 330 Overloaded Moves . | . . . . . Propulsion Burnouts . | . . . . . Robots Hopped . | . . . . . Cave-ins Triggered . | . . . . . Exploration Rate (%) 25 | 4 31 39 21 33 Regions Visited 4 Branch Regions 1 Pre-discovered Areas 1 | . . 1 . . Known Exits Taken . | . . . . . Unknown Exits Taken 4 | 1 1 1 1 . Scrap Searched 1 | . . 1 . . Spaces Dug . | . . . . . Terrain Destroyed . | . . . . . Melee . | . . . . . Projectile . | . . . . . AOE . | . . . . . Terrain Rammed . | . . . . . Walls Destroyed . | . . . . . Machines Disabled . | . . . . . Actions | -11 -10 -10 -9 -8 --------- Run | Jun Mat Min Mat Mat Total 1392 | 86 305 157 247 597 Wait 254 | . 65 1 37 151 Move 873 | 63 177 142 151 340 Hop . | . . . . . Pick Up 45 | 5 17 4 12 7 Fast Attach 20 | 7 1 . 6 6 Attach 23 | 1 2 1 4 15 Detach 1 | . . . . 1 Swap 2 | . 1 1 . . Drop 26 | 1 2 2 12 9 Fire 145 | 9 40 6 25 65 Melee . | . . . . . Ram . | . . . . . Kick 3 | . . . . 3 Crush . | . . . . . Escape Stasis . | . . . . . Rewire . | . . . . . Trap . | . . . . . Miscellaneous . | . . . . . Route ------- -11/Junkyard -10/Materials -10/Mines -9/Materials -8/Materials History --------- Turn | Location | Event 14 | -11/Junkyard | Discovered new exit (range 16) 117 | -11/Junkyard | Entered Materials 303 | -10/Materials | Build established: Mutant 639 | -10/Materials | Discovered new exit (range 12) 766 | -10/Materials | Entered Mines 795 | -10/Mines | Found a damaged Exp. Sensor Array with a note attached 800 | -10/Mines | Found Prototype Device 812 | -10/Mines | Learned location of Storage (-7) 1037 | -10/Mines | Found a hidden stash of uninstalled traps 1142 | -10/Mines | Discovered new exit (range 8) 1160 | -10/Mines | Entered Materials 1160 | -9/Materials | Evolved 2 slots: Propulsion x2 1204 | -9/Materials | Build established: Scavenger-Mutant 1558 | -9/Materials | Discovered new exit (range 13) 1588 | -9/Materials | Entered another Materials area 1588 | -8/Materials | Evolved 2 slots: Utility x2 1902 | -8/Materials | Identified Exp. Sensor Array 2161 | -8/Materials | Build established: Mutant 2544 | -8/Materials | Core integrity fell below 50% 2564 | -8/Materials | Core integrity fell below 20% 2567 | -8/Materials | Destroyed by G-47 Trooper with Particle Gun Last Messages --------------- Kicked X-62 Marksman. Penetrated by Slug. Minigun destroyed. Power failure averted by Cryofiber Web. Overheating: Cryofiber Web damaged (-18). Overheating: Hcp. Storage Unit damaged (-17). Field Laser destroyed. Penetrated by Slug. Kicked X-62 Marksman. Internal heat damage averted by Cryofiber Web. Weight Redist. System destroyed. Lgt. Treads destroyed. Matter decay averted by Cryofiber Web. Overheating: System interference. Cryofiber Web temporarily disabled. Power failure, Deuterium Engine shutdown. Kicked X-62 Marksman out of the way. Deuterium Engine destroyed. Overheating: Hcp. Storage Unit damaged (-19). Aluminum Leg destroyed. Map ----- +----------------------------------------------------+ | ?????????????#????# [ ## #?#???# ! # # | | ?????????????#?#??########!####+####??######## # | | ??????????????????# #*#! !#??# ! # # | | ?????????????#????# +%+%*""" #### # # | | ?????#?#?????#????#[ "=#!#==""" ##?# # # | | ????????????#??#??# T #%# """ #?## """ + + | | ??????????????#???# " #=#[ #??# """ # # | | ???????????????#??# / #!#########?## """ # # | | ??????????????????########*# ############## # | | ?????? ???? ^^ + ! !# = ####### * | | ??????????????????##### ^^ # # | | ???????????????#??#?### # # T | | ???????#???????#? ??### # " # | | ??????????????????????# #### T # ####### | | ??????????#?????? ????# #?## " ## ############# | | ???????????????##??##?# #?## ## #! T #????? | | ????????#??????? ???## #??####### # #????? | | ???????????? ????? #### ########## + #????? | | ????????????????? # # """ ##???? | | ?????????????? ????# # """ #????? | | ???????????????????# # """ #????? | | ????????????? ?????# ######################????? | | ??????????????#???## # #???????????????? | | ???????## ########## # #?#?????????????? | | ???????# *#! "" #???????????????? | | ?????#?# =!#x@" #??#????????????? | | ???????# """ !g/ Yx" "" #???????????????? | | ???????# """"" [%#=* """#???????????????? | | ???????? ????""""" ###[ ! S"##??????????????? | | ?????????? ??""""" #?# #???????????????? | | ?????????? ? """ #?############??????????????? | | ???????? ???? ^ #????????#?????#????????????? | | ????????? ?? #????????#?????#????????????? | | ?????????? """ #??##?#???????#?????????????? | | ????????? """"" #???????????#??##???????????? | | ????????? """"" ???? ??? ? ????? ?????????? | | ????????# ???"""" ? ?????????????????????????? | | ????????#??? ???" ?? ????????????????????????? | | ????????????????? ???????????????????????????? | | ????????????? ?? ? ???? ? ?????????????????? | | ???????????????? ???????????????????????????? | | ???????????????? ????#??????????????????????? | | ???????????????? ???????????????????????????? | | ??????????????????####??????? ???????????????????? | | ?????????????????????????????????????????????????? | | ?????????????????????????????????????????????????? | | ?????????????????????????????????????????????????? | | ?????????????????????????????????????????????????? | | ?????????????????????????????????????????????????? | | ?????????????????????????????????????????????????? | +----------------------------------------------------+ Best States ------------- Heat Dissipation 41 Energy Generation 14 Energy Capacity 275 Matter Stores 300 Matter Capacity 300 Sight Range 16 Terrain Scan Range 16 Terrain Scan Density 10 Additional Mass Support 6 Base Temperature (-) 100 Armor Coverage 225 Resistance: KI 20 Evasion (%) 55 Targeting Accuracy 5 Recoil Reduction 1 Item Schematics ----------------- Exp. Sensor Array | -8/Materials | Scanalyzed Robot Schematics ------------------ None Fabricated ------------ Nothing Alien Tech Used ----------------- None Achievements -------------- None Challenges ------------ None Game ------ Seed MiniTachyonExtractor Manual? 0 Play Time 00:34:18 Cumulative 9.3 hours Start 2023.05.06 @ 19:11:17 End 2023.05.07 @ 11:51:43 Sessions 3 Manual Loads 0 Difficulty Rogue Special Mode None Game No. 11 Rogue 11 Adventurer 0 Explorer 0 Win Type - Total 0 Types 0/0/0/0/0/0/0/0/0 Lore% 5 Gallery% 12 Achievement% 10 Wizard Run 0 Options --------- ASCII 0 Keyboard 0 Movement Mouse Keybinds 0 Fullscreen 1 Font 18/SmallcapsGlow Map View 76x50 Tactical HUD 0 Map Filters NONE Filters NONE Steam 1 RUN: b0fb9372-5dbc-42a9-bd16-9fd91322a084